Workbook

Sheet PLOT
A1: ProperSort | B1: (All)
A3: Row Labels | B3: ME-OTC | C3: NH | D3: VT | E3: CT | F3: MA | G3: RI | H3: DE | I3: DC | J3: MD | K3: NJ | L3: NY | M3: PA | N3: VA-OTC | O3: OTC | P3: OTC NEAR ROAD
A4: 2015 | B4: 7.765576053 | C4: 3.405646949 | D4: 7.176694865 | E4: 10.35560982 | F4: 10.07592901 | G4: 11.62976163 | H4: 12.17775436 | I4: 13.63644577 | J4: 10.97544692 | K4: 14.3406328 | L4: 13.13681741 | M4: 8.736311003 | N4: 8.501864749 | O4: 10.56323803 | P4: 15.66003194
A5: 2016 | B5: 6.098637099 | C5: 3.045199951 | D5: 6.028947995 | E5: 12.65485268 | F5: 8.759593561 | G5: 10.42124693 | H5: 11.57932938 | I5: 13.3989785 | J5: 11.40092964 | K5: 13.58788119 | L5: 12.06346077 | M5: 7.491249468 | N5: 9.094161039 | O5: 10.06281517 | P5: 14.76312172
A6: 2017 | B6: 7.608507186 | C6: 2.643343319 | D6: 6.225725155 | E6: 12.53103056 | F6: 7.970943821 | G6: 10.06964525 | H6: 10.65227001 | I6: 11.70715259 | J6: 10.29389726 | K6: 12.49309388 | L6: 11.64550735 | M6: 6.391688958 | N6: 8.691307078 | O6: 9.341073178 | P6: 13.73396122
A7: 2018 | B7: 7.693668204 | C7: 2.527541906 | D7: 6.227115859 | E7: 10.4238187 | F7: 8.362205083 | G7: 11.43235639 | H7: 9.884734458 | I7: 11.14386349 | J7: 10.023914 | K7: 12.15778417 | L7: 12.97331328 | M7: 5.559523452 | N7: 8.601152299 | O7: 9.151707262 | P7: 13.2164703
A8: 2019 | B8: 6.963033065 | C8: 2.643723849 | D8: 6.248929718 | E8: 10.00018323 | F8: 8.313122616 | G8: 11.47947606 | H8: 10.29118174 | I8: 11.69186815 | J8: 10.43837633 | K8: 13.09281856 | L8: 11.77480739 | M8: 6.367063938 | N8: 9.217301385 | O8: 9.386593703 | P8: 13.46932974
A9: 2020 | B9: 6.409607401 | C9: 2.460908834 | D9: 5.324289958 | E9: 9.733479652 | F9: 7.809356473 | G9: 10.26134764 | H9: 9.404730892 | I9: 9.874705146 | J9: 9.067472624 | K9: 11.42506444 | L9: 11.15494208 | M9: 6.464544192 | N9: 7.444813258 | O9: 8.545110172 | P9: 12.18782583
A10: 2021 | B10: 6.424925533 | C10: 3.133975155 | D10: 5.375830852 | E10: 9.770973281 | F10: 7.334042462 | G10: 10.44276633 | H10: 8.680721267 | I10: 11.26984836 | J10: 9.878508181 | K10: 11.78848554 | L10: 10.95633112 | M10: 7.155328057 | N10: 8.099369067 | O10: 8.963979828 | P10: 12.90097453
A11: Grand Total | B11: 6.991391142 | C11: 2.808942768 | D11: 6.086860856 | E11: 10.79636286 | F11: 8.379713545 | G11: 10.81718087 | H11: 10.38619337 | I11: 11.81697338 | J11: 10.29843254 | K11: 12.69685173 | L11: 11.95761004 | M11: 6.880891515 | N11: 8.521935885 | O11: 9.430546248 | P11: 13.70435159
O46: 1st day | P46: last day
O47: January 1 | P47: December 31
O48: ="Average Nitrogen Dioxide 1-hr Concentrations " &TEXT(O47,"mmm d")&" - " &TEXT(P47,"mmm d")&" (2021 data are preliminary)" -> Average Nitrogen Dioxide 1-hr Concentrations Jan 1 - Dec 31 (2021 data are preliminary)
A51: Click on the CALCULATE MACRO to update the % change between years table below:
A52: CALCULATE MACRO
A54: Row Labels | B54: =IF(B63="","",B63) -> ME-OTC | C54: =IF(C63="","",C63) -> NH | D54: VT | E54: CT | F54: MA | G54: RI | H54: DE | I54: DC | J54: MD | K54: NJ | L54: NY | M54: PA | N54: VA-OTC | O54: OTC | P54: OTC NEAR ROAD
A55: 2021/2015-100% | B55: =IF(B70="","",IF(B64="","",B70/B64-100%)) -> -0.1726401893 | C55: =IF(C70="","",IF(C64="","",C70/C64-100%)) -> -0.07977097973 | D55: -0.2509322253 | E55: -0.05645602245 | F55: -0.2721224557 | G55: -0.1020653161 | H55: -0.2871656787 | I55: -0.1735494313 | J55: -0.09994478994 | K55: -0.1779661537 | L55: -0.1659828422 | M55: -0.1809668801 | N55: -0.04734204714 | O55: -0.1513984823 | P55: -0.1761846606 | Q55: =IF($B$70="","",IF(Q64="","",$B$70/Q64-100%)) ->  | R55: =IF($B$70="","",IF(R64="","",$B$70/R64-100%)) -> 
A56: 2021/2016-100% | B56: =IF(B70="","",IF(B65="","",B70/B65-100%)) -> 0.05350186103 | C56: =IF(C70="","",IF(C65="","",C70/C65-100%)) -> 0.02915250415 | D56: -0.1083302002 | E56: -0.2278872362 | F56: -0.1627416945 | G56: 0.002064954805 | H56: -0.2503260781 | I56: -0.1589024219 | J56: -0.1335348523 | K56: -0.1324265077 | L56: -0.09177545953 | M56: -0.04484184011 | N56: -0.1093879873 | O56: -0.1091976073 | P56: -0.126135056
A57: 2021/2017-100% | B57: =IF(B70="","",IF(B66="","",B70/B66-100%)) -> -0.155560299 | C57: =IF(C70="","",IF(C66="","",C70/C66-100%)) -> 0.1856103338 | D57: -0.1365133027 | E57: -0.2202578047 | F57: -0.07990287902 | G57: 0.03705404474 | H57: -0.1850824981 | I57: -0.03735359392 | J57: -0.04035294589 | K57: -0.05639982742 | L57: -0.0591795799 | M57: 0.1194737579 | N57: -0.0681069033 | O57: -0.04036938183 | P57: -0.06065159779
A58: 2021/2018-100% | B58: =IF(B70="","",IF(B67="","",B70/B67-100%)) -> -0.1649073806 | C58: =IF(C70="","",IF(C67="","",C70/C67-100%)) -> 0.2399300473 | D58: -0.1367061456 | E58: -0.06263015825 | F58: -0.1229535286 | G58: -0.08656046246 | H58: -0.1218053146 | I58: 0.01130531387 | J58: -0.0145058928 | K58: -0.03037548781 | L58: -0.15547163 | M58: 0.2870398189 | N58: -0.05833907069 | O58: -0.02051283203 | P58: -0.02387140938
A59: 2021/2019-100% | B59: =IF(B70="","",IF(B68="","",B70/B68-100%)) -> -0.07728062275 | C59: =IF(C70="","",IF(C68="","",C70/C68-100%)) -> 0.1854396805 | D59: -0.139719745 | E59: -0.02292057458 | F59: -0.1177752572 | G59: -0.09030984705 | H59: -0.156489363 | I59: -0.03609515447 | J59: -0.0536355591 | K59: -0.09962201879 | L59: -0.06951079953 | M59: 0.123803393 | N59: -0.1212862932 | O59: -0.04502313489 | P59: -0.04219625004
A60: 2021/2020-100% | B60: =IF(B70="","",IF(B69="","",B70/B69-100%)) -> 0.002389870544 | C60: =IF(C70="","",IF(C69="","",C70/C69-100%)) -> 0.2735031512 | D60: 0.00968033178 | E60: 0.003852027262 | F60: -0.0608646837 | G60: 0.01767981136 | H60: -0.07698355574 | I60: 0.1412845444 | J60: 0.08944450019 | K60: 0.03180910736 | L60: -0.01780475117 | M60: 0.1068573196 | N60: 0.08792105136 | O60: 0.04901863735 | P60: 0.05851320106 | Q60: =IF($B$70="","",IF(Q69="","",$B$70/Q69-100%)) -> 
A63: Row Labels | B63: ME-OTC | C63: NH | D63: VT | E63: CT | F63: MA | G63: RI | H63: DE | I63: DC | J63: MD | K63: NJ | L63: NY | M63: PA | N63: VA-OTC | O63: OTC | P63: OTC NEAR ROAD
A64: 2015 | B64: 7.765576053 | C64: 3.405646949 | D64: 7.176694865 | E64: 10.35560982 | F64: 10.07592901 | G64: 11.62976163 | H64: 12.17775436 | I64: 13.63644577 | J64: 10.97544692 | K64: 14.3406328 | L64: 13.13681741 | M64: 8.736311003 | N64: 8.501864749 | O64: 10.56323803 | P64: 15.66003194
A65: 2016 | B65: 6.098637099 | C65: 3.045199951 | D65: 6.028947995 | E65: 12.65485268 | F65: 8.759593561 | G65: 10.42124693 | H65: 11.57932938 | I65: 13.3989785 | J65: 11.40092964 | K65: 13.58788119 | L65: 12.06346077 | M65: 7.491249468 | N65: 9.094161039 | O65: 10.06281517 | P65: 14.76312172
A66: 2017 | B66: 7.608507186 | C66: 2.643343319 | D66: 6.225725155 | E66: 12.53103056 | F66: 7.970943821 | G66: 10.06964525 | H66: 10.65227001 | I66: 11.70715259 | J66: 10.29389726 | K66: 12.49309388 | L66: 11.64550735 | M66: 6.391688958 | N66: 8.691307078 | O66: 9.341073178 | P66: 13.73396122
A67: 2018 | B67: 7.693668204 | C67: 2.527541906 | D67: 6.227115859 | E67: 10.4238187 | F67: 8.362205083 | G67: 11.43235639 | H67: 9.884734458 | I67: 11.14386349 | J67: 10.023914 | K67: 12.15778417 | L67: 12.97331328 | M67: 5.559523452 | N67: 8.601152299 | O67: 9.151707262 | P67: 13.2164703
A68: 2019 | B68: 6.963033065 | C68: 2.643723849 | D68: 6.248929718 | E68: 10.00018323 | F68: 8.313122616 | G68: 11.47947606 | H68: 10.29118174 | I68: 11.69186815 | J68: 10.43837633 | K68: 13.09281856 | L68: 11.77480739 | M68: 6.367063938 | N68: 9.217301385 | O68: 9.386593703 | P68: 13.46932974
A69: 2020 | B69: 6.409607401 | C69: 2.460908834 | D69: 5.324289958 | E69: 9.733479652 | F69: 7.809356473 | G69: 10.26134764 | H69: 9.404730892 | I69: 9.874705146 | J69: 9.067472624 | K69: 11.42506444 | L69: 11.15494208 | M69: 6.464544192 | N69: 7.444813258 | O69: 8.545110172 | P69: 12.18782583
A70: 2021 | B70: 6.424925533 | C70: 3.133975155 | D70: 5.375830852 | E70: 9.770973281 | F70: 7.334042462 | G70: 10.44276633 | H70: 8.680721267 | I70: 11.26984836 | J70: 9.878508181 | K70: 11.78848554 | L70: 10.95633112 | M70: 7.155328057 | N70: 8.099369067 | O70: 8.963979828 | P70: 12.90097453

Sheet HOURLY

Sheet Sheet1
E1: LAST DATE
A2: Code | B2: State | C2: PARSED | D2: SEQUENTIAL | E2: 2021 AQS COMPLETE
A3: 9 | B3: Connecticut | E3: 2020-12-31
A4: 10 | B4: Delaware | E4: 2020-06-30
A5: 11 | B5: DC | E5: 2020-12-31
A6: 23 | B6: Maine | E6: 2020-12-31
A7: 24 | B7: Maryland | E7: 2020-12-31
A8: 25 | B8: Massachusetts | E8: 2020-10-30
A9: 33 | B9: New Hampshire | E9: 2020-12-31
A10: 34 | B10: New Jersey | E10: 2020-12-31
A11: 36 | B11: New York | E11: 2022-12-30
A12: 42 | B12: Pennsylvania | E12: 2020-09-30
A13: 44 | B13: Rhode Island | E13: 2022-12-12
A14: 50 | B14: Vermont | E14: 2020-12-31
A15: 51 | B15: Virginia OTC | E15: 2020-12-31
